bitfinex/quotes_SOLUSD_20241028
["timestamp","ask_amount","ask_price","bid_price","bid_amount"]
[1730102201717,5.6844,175.92,175.88,14.12353198]
[1730102203825,5.6844,175.92,175.89,14.12353198]
[1730102207122,30.0,175.9,175.88,14.12353198]
[1730102209532,5.6848,175.91,175.89,14.12353198]
[1730102210722,70.0,175.93,175.89,14.12353198]
[1730102210934,5.6844,175.92,175.9,14.12353198]
[1730102211101,5.6844,175.92,175.89,14.12353198]
[1730102213799,5.6844,175.92,175.84,16.4594]
[1730102213800,5.6837,175.94,175.9,14.12353198]
[1730102214128,5.6837,175.94,175.92,14.12353198]
[1730102214336,30.0,175.93,175.92,14.12353198]
[1730102215624,35.684,175.93,175.92,14.12353198]
[1730102216008,30.0,175.93,175.92,14.12353198]
[1730102216519,30.0,175.93,175.92,9.03712437]
[1730102217327,5.6833,175.96,175.92,9.03712437]
[1730102217522,84.2057,175.99,175.95,9.03712437]
[1730102217700,5.6824,175.98,175.95,9.03712437]
[1730102218604,5.6824,175.98,175.86,6.3903]
[1730102218605,5.6824,175.98,175.93,9.03712437]
[1730102218809,14.71952437,175.98,175.93,9.03712437]
[1730102219109,5.6824,175.98,175.94,9.03712437]
[1730102220320,79.03712437,175.97,175.86,6.3903]
[1730102220543,9.03712437,175.96,175.86,6.3903]
[1730102220738,9.03712437,175.96,175.91,9.03712437]
[1730102221029,9.03712437,175.96,175.86,6.3903]
[1730102221030,70.0,175.94,175.86,6.3903]
[1730102221339,70.0,175.94,175.9,9.03712437]
[1730102221813,5.684,175.93,175.9,9.03712437]
[1730102222018,5.684,175.93,175.91,9.03712437]
[1730102223216,79.03712437,175.96,175.86,6.3903]
[1730102223217,9.03712437,175.95,175.9,9.03712437]
[1730102223527,14.72052437,175.95,175.9,9.03712437]
[1730102224519,14.72052437,175.95,175.89,9.03712437]
[1730102226032,9.03712437,175.94,175.89,9.03712437]
[1730102226228,5.684,175.93,175.89,9.03712437]
[1730102229013,14.72112437,175.93,175.88,9.03712437]
[1730102229426,14.72112437,175.93,175.86,6.3903]
[1730102229427,9.03712437,175.92,175.87,9.03712437]
[1730102230315,9.03712437,175.89,175.84,16.4594]
[1730102230529,9.03712437,175.89,175.75,0.1]
[1730102230530,9.03712437,175.87,175.8,16.3144]
[1730102230832,5.6863,175.86,175.82,9.03712437]
[1730102231237,14.2128,175.9,175.83,9.03712437]
[1730102231433,9.03712437,175.88,175.83,9.03712437]
[1730102231832,9.03712437,175.88,175.8,16.3144]
[1730102232137,9.03712437,175.88,175.83,9.03712437]
[1730102232645,5.686,175.87,175.83,9.03712437]
[1730102237225,5.6853,175.89,175.86,9.03712437]
[1730102238069,5.685,175.9,175.86,9.03712437]
[1730102238226,5.685,175.9,175.87,9.03712437]
[1730102238422,5.6847,175.92,175.89,9.03712437]
[1730102238620,5.6847,175.92,175.85,6.3751]
[1730102238621,5.6847,175.92,175.9,9.03712437]
[1730102240232,5.6837,175.94,175.9,9.03712437]
[1730102242131,5.6827,175.97,175.93,9.03712437]
[1730102242334,5.6827,175.97,175.94,9.03712437]
[1730102242534,5.6827,175.97,175.93,9.03712437]
[1730102244443,14.71982437,175.97,175.86,15.1787]
[1730102244747,9.03712437,175.96,175.91,9.03712437]
[1730102245829,5.6834,175.95,175.91,9.03712437]
[1730102249352,9.03712437,175.94,175.89,9.03712437]
[1730102249953,14.72052437,175.95,175.9,9.03712437]
[1730102254356,14.72052437,175.95,175.86,15.1787]
[1730102254357,79.03712437,175.93,175.86,15.1787]
[1730102254562,79.03712437,175.93,175.88,9.03712437]
[1730102255249,79.03712437,175.93,175.86,15.1787]
[1730102255250,14.72152437,175.92,175.87,9.03712437]
[1730102255448,9.03712437,175.91,175.86,9.03712437]
[1730102255647,9.03712437,175.89,175.82,15.9153]
[1730102255834,9.03712437,175.89,175.84,9.03712437]
[1730102256039,9.03712437,175.89,175.82,15.9153]
[1730102256040,79.03712437,175.89,175.82,15.9153]
[1730102256238,79.03712437,175.89,175.84,9.03712437]
[1730102257361,5.6856,175.88,175.84,9.03712437]
[1730102257769,5.6856,175.88,175.86,9.03712437]
[1730102258087,70.0,175.91,175.86,9.03712437]
[1730102258271,5.685,175.9,175.87,9.03712437]
[1730102259363,75.6847,175.91,175.87,9.03712437]
[1730102260364,75.6847,175.91,175.86,9.03712437]
[1730102265772,84.72182437,175.91,175.86,9.03712437]
[1730102266066,9.03712437,175.9,175.85,9.03712437]
[1730102266363,70.0,175.89,175.85,9.03712437]
[1730102266664,70.0,175.89,175.83,9.03712437]
[1730102266665,9.03712437,175.88,175.83,9.03712437]
[1730102267467,79.03712437,175.89,175.84,9.03712437]
[1730102268166,5.6856,175.88,175.84,9.03712437]
[1730102269267,14.72272437,175.88,175.83,9.03712437]
[1730102269861,5.6856,175.88,175.84,9.03712437]
[1730102271567,14.2118,175.91,175.85,9.03712437]
[1730102271568,14.72212437,175.9,175.85,9.03712437]
[1730102273679,5.685,175.9,175.86,9.03712437]
[1730102277677,5.685,175.9,175.85,9.03712437]
[1730102278176,14.72212437,175.9,175.85,9.03712437]
[1730102278553,9.03712437,175.89,175.84,9.03712437]
[1730102280075,14.72212437,175.9,175.85,9.03712437]
[1730102282754,14.72212437,175.9,175.82,15.9153]
[1730102282956,14.72212437,175.9,175.84,9.03712437]
[1730102283681,14.72212437,175.9,175.82,15.9153]
[1730102283850,5.685,175.9,175.86,9.03712437]
[1730102284050,5.6844,175.92,175.89,9.03712437]
[1730102284250,5.6837,175.94,175.91,9.03712437]
[1730102284480,5.6837,175.94,175.92,9.03712437]
[1730102284856,5.6837,175.94,175.93,9.03712437]
[1730102285056,5.6837,175.94,175.83,24.027864]
[1730102285257,30.0,175.92,175.91,9.03712437]
[1730102286660,5.6842,175.93,175.9,9.03712437]
[1730102287567,9.03712437,175.92,175.87,9.03712437]
[1730102288477,5.6847,175.91,175.87,9.03712437]
[1730102288689,14.72182437,175.91,175.86,9.03712437]
[1730102288890,14.72182437,175.91,175.82,15.9153]
[1730102288891,39.03712437,175.9,175.85,9.03712437]
[1730102290069,5.6853,175.89,175.85,9.03712437]
[1730102290869,14.72242437,175.89,175.82,15.9153]
[1730102291058,30.0,175.88,175.84,9.03712437]
[1730102291776,84.72242437,175.89,175.84,9.03712437]
[1730102291980,84.72242437,175.89,175.83,9.03712437]
[1730102292371,9.03712437,175.88,175.83,9.03712437]
[1730102293265,5.686,175.87,175.83,9.03712437]
[1730102294684,5.686,175.87,175.82,15.9153]
[1730102294870,5.686,175.87,175.83,9.03712437]
[1730102295961,14.72312437,175.87,175.78,16.0599]
[1730102296278,5.686,175.87,175.82,9.03712437]
[1730102297355,5.686,175.87,175.85,9.03712437]
[1730102297775,30.0,175.86,175.85,9.03712437]
[1730102297980,5.686,175.87,175.85,9.03712437]
[1730102298683,70.0,175.89,175.84,9.03712437]
[1730102298982,5.6856,175.88,175.84,9.03712437]
[1730102299482,79.03712437,175.91,175.86,9.03712437]
[1730102299783,5.685,175.9,175.86,9.03712437]
[1730102300162,5.685,175.9,175.87,9.03712437]
[1730102300375,30.0,175.88,175.87,9.03712437]
[1730102301373,5.685,175.9,175.87,9.03712437]
[1730102301775,91.3795,175.93,175.88,9.03712437]
[1730102301968,30.0,175.89,175.87,9.03712437]
[1730102302166,9.03712437,175.92,175.87,9.03712437]
[1730102302962,9.03712437,175.91,175.86,9.03712437]
[1730102304765,5.685,175.9,175.86,9.03712437]
[1730102305275,9.03712437,175.89,175.84,9.03712437]
[1730102305667,84.72212437,175.9,175.85,9.03712437]
[1730102307075,5.685,175.9,175.87,9.03712437]
[1730102307584,5.685,175.9,175.88,9.03712437]
[1730102307763,30.0,175.89,175.88,9.03712437]
[1730102308364,35.6853,175.89,175.87,9.03712437]
[1730102308671,5.6853,175.89,175.87,9.03712437]
[1730102309089,5.6853,175.89,175.86,9.03712437]
[1730102309469,84.72212437,175.9,175.85,9.03712437]
[1730102311089,14.72212437,175.9,175.85,9.03712437]
[1730102311279,5.685,175.9,175.86,9.03712437]
[1730102311479,5.685,175.9,175.87,9.03712437]
[1730102312493,93.24862437,175.92,175.86,9.03712437]
[1730102312697,5.6847,175.91,175.86,9.03712437]
[1730102314498,14.72182437,175.91,175.86,9.03712437]
[1730102317282,30.0,175.88,175.85,9.03712437]
[1730102318487,35.6859,175.88,175.84,9.03712437]
[1730102319876,35.6859,175.88,175.86,9.03712437]
[1730102320278,30.0,175.88,175.87,9.03712437]
[1730102320988,35.6856,175.88,175.87,9.03712437]
[1730102321387,70.0,175.92,175.87,9.03712437]
[1730102321610,84.72152437,175.92,175.86,9.03712437]
[1730102322995,75.6844,175.92,175.88,9.03712437]
[1730102323192,30.0,175.89,175.87,9.03712437]
[1730102323996,30.0,175.89,175.86,9.03712437]
[1730102324390,84.72152437,175.92,175.86,9.03712437]
[1730102324910,9.03712437,175.91,175.86,9.03712437]
[1730102325487,5.685,175.9,175.85,9.03712437]
[1730102326191,14.72212437,175.9,175.85,9.03712437]
[1730102327001,84.72212437,175.9,175.84,9.03712437]
[1730102327313,30.0,175.88,175.84,9.03712437]
[1730102327515,5.686,175.87,175.84,9.03712437]
[1730102328811,5.686,175.87,175.83,9.03712437]
[1730102331190,5.686,175.87,175.84,9.03712437]
[1730102332393,9.03712437,175.89,175.84,9.03712437]
[1730102332394,5.6856,175.88,175.84,9.03712437]
[1730102332612,84.72272437,175.88,175.79,6.0292]
[1730102332916,84.72272437,175.88,175.83,9.03712437]
[1730102334506,35.6866,175.86,175.83,9.03712437]
[1730102340524,35.6866,175.86,175.82,9.03712437]
[1730102341701,35.6866,175.86,175.83,9.03712437]
[1730102342325,5.6866,175.86,175.83,9.03712437]
[1730102342798,5.686,175.87,175.84,9.03712437]
[1730102343721,5.685,175.9,175.86,9.03712437]
[1730102343935,5.6844,175.92,175.89,9.03712437]
[1730102344417,14.72152437,175.92,175.87,9.03712437]
[1730102344626,5.6844,175.92,175.88,9.03712437]
[1730102345195,5.6844,175.92,175.89,9.03712437]
[1730102345428,9.03712437,175.91,175.84,15.4762]
[1730102345611,9.03712437,175.91,175.87,9.03712437]
[1730102346118,14.72152437,175.92,175.87,9.03712437]
[1730102347404,5.6844,175.92,175.88,9.03712437]
[1730102351816,14.72152437,175.92,175.87,9.03712437]
[1730102352012,30.0,175.89,175.86,9.03712437]
[1730102352397,39.03712437,175.89,175.84,9.03712437]
[1730102352604,9.03712437,175.88,175.83,9.03712437]
[1730102353526,35.686,175.87,175.83,9.03712437]
[1730102354306,44.72312437,175.87,175.82,9.03712437]
[1730102354510,44.72312437,175.87,175.83,9.03712437]
[1730102355609,44.72312437,175.87,175.82,9.03712437]
[1730102355929,44.72312437,175.87,175.8,16.4217]
[1730102356114,44.72312437,175.87,175.82,9.03712437]
[1730102357233,114.72312437,175.87,175.82,9.03712437]
[1730102357526,9.03712437,175.86,175.8,16.4217]
[1730102357723,5.6866,175.85,175.81,9.03712437]
[1730102360429,9.03712437,175.84,175.79,9.03712437]
[1730102361337,5.6873,175.83,175.79,9.03712437]
[1730102361825,5.6873,175.83,175.8,9.03712437]
[1730102363130,5.6869,175.84,175.8,9.03712437]
[1730102363325,5.6869,175.84,175.76,16.3541]
[1730102363326,5.6869,175.84,175.81,9.03712437]
[1730102364019,70.0,175.81,175.7,21.95233829]
[1730102364319,70.0,175.81,175.7,16.0218]
[1730102364525,9.03712437,175.8,175.75,9.03712437]
[1730102365109,35.6887,175.79,175.75,9.03712437]
[1730102365718,5.6887,175.79,175.75,9.03712437]
[1730102368527,9.03712437,175.78,175.73,9.03712437]
[1730102369036,9.03712437,175.77,175.7,16.0218]
[1730102369225,9.03712437,175.76,175.71,9.03712437]
[1730102369430,9.03712437,175.76,175.69,6.5019]
[1730102369615,70.0,175.77,175.71,9.03712437]
[1730102369616,79.03712437,175.77,175.71,9.03712437]
[1730102370123,5.6895,175.76,175.71,9.03712437]
[1730102371916,84.2215,175.79,175.73,9.03712437]
[1730102372124,5.6892,175.78,175.75,9.03712437]
[1730102377724,5.6892,175.78,175.74,9.03712437]
[1730102380644,5.6892,175.78,175.73,9.03712437]
[1730102380846,14.72632437,175.78,175.73,9.03712437]
[1730102381033,5.6892,175.78,175.75,9.03712437]
[1730102381340,30.0,175.76,175.75,9.03712437]
[1730102381739,5.6885,175.8,175.75,9.03712437]
[1730102381953,5.6885,175.8,175.77,9.03712437]
[1730102382531,5.6876,175.82,175.78,9.03712437]
[1730102382826,30.0,175.79,175.78,9.03712437]
[1730102383351,5.6881,175.81,175.78,9.03712437]
[1730102384147,5.6876,175.82,175.78,9.03712437]
[1730102385732,5.6869,175.84,175.8,9.03712437]
[1730102387051,5.6869,175.84,175.79,9.03712437]
[1730102388839,14.72402437,175.84,175.75,6.4488]
[1730102389054,14.72402437,175.84,175.79,9.03712437]
[1730102389860,9.03712437,175.82,175.72,16.5139]
[1730102390050,30.0,175.8,175.76,9.03712437]
[1730102390252,30.0,175.8,175.78,9.03712437]
[1730102390944,35.6883,175.8,175.78,9.03712437]
[1730102391738,5.6883,175.8,175.78,9.03712437]
[1730102392657,5.6876,175.82,175.79,9.03712437]
[1730102392840,5.6876,175.82,175.8,9.03712437]
[1730102393041,30.0,175.81,175.8,9.03712437]
[1730102393746,35.6879,175.81,175.79,9.03712437]
[1730102394960,35.6879,175.81,175.78,9.03712437]
[1730102395438,70.0,175.78,175.72,16.5139]
[1730102395650,70.0,175.8,175.73,9.03712437]
[1730102395869,9.03712437,175.79,175.74,9.03712437]
[1730102396962,5.6889,175.78,175.74,9.03712437]
[1730102397162,5.6889,175.78,175.75,9.03712437]
[1730102398047,5.6886,175.79,175.75,9.03712437]
[1730102400349,14.72572437,175.79,175.74,9.03712437]
[1730102400707,5.6886,175.79,175.72,16.5139]
[1730102400963,5.6886,175.79,175.75,9.03712437]
[1730102401153,5.6886,175.79,175.72,16.5139]
[1730102401353,14.72572437,175.79,175.73,9.03712437]
[1730102401669,30.0,175.77,175.73,9.03712437]
[1730102402666,30.0,175.77,175.75,9.03712437]
[1730102402855,5.6886,175.79,175.75,9.03712437]
[1730102403346,19.9101,175.79,175.74,9.03712437]
[1730102404064,5.6886,175.79,175.75,9.03712437]
[1730102404458,5.6886,175.79,175.76,9.03712437]
[1730102404661,70.0,175.81,175.76,9.03712437]
[1730102404662,5.6882,175.8,175.76,9.03712437]
[1730102405059,5.6882,175.8,175.77,9.03712437]
[1730102405259,30.0,175.78,175.72,6.5577]
[1730102405465,70.0,175.83,175.77,9.03712437]
[1730102405662,70.0,175.83,175.8,9.03712437]
[1730102406171,30.0,175.81,175.8,9.03712437]
[1730102406358,70.0,175.82,175.73,16.4811]
[1730102406564,79.03712437,175.82,175.73,16.4811]
[1730102406762,79.03712437,175.82,175.76,9.03712437]
[1730102407468,79.03712437,175.82,175.77,9.03712437]
[1730102407670,70.0,175.82,175.78,9.03712437]
[1730102407874,75.687,175.84,175.81,9.03712437]
[1730102408578,5.6864,175.86,175.82,9.03712437]
[1730102408762,5.686,175.87,175.83,9.03712437]
[1730102409078,5.686,175.87,175.85,9.03712437]
[1730102409267,75.685,175.9,175.86,9.03712437]
[1730102409474,75.6844,175.92,175.88,9.03712437]
[1730102409774,9.03712437,175.89,175.82,9.03712437]
[1730102409958,5.6844,175.92,175.81,9.03712437]
[1730102409959,9.03712437,175.86,175.81,9.03712437]
[1730102410361,9.03712437,175.87,175.81,9.03712437]
[1730102410575,5.6863,175.86,175.81,9.03712437]
[1730102411679,84.72342437,175.86,175.8,9.03712437]
[1730102412781,70.0,175.86,175.82,9.03712437]
[1730102412955,70.0,175.86,175.79,15.1932]
[1730102412956,5.6857,175.88,175.85,9.03712437]
[1730102413156,5.6857,175.88,175.86,9.03712437]
[1730102413777,5.6853,175.89,175.87,9.03712437]
[1730102413977,5.6848,175.91,175.88,9.03712437]
[1730102414286,5.6848,175.91,175.89,9.03712437]
[1730102415770,79.03712437,175.9,175.8,20.0]
[1730102415970,79.03712437,175.9,175.84,9.03712437]
[1730102416385,79.03712437,175.9,175.85,9.03712437]
[1730102416864,5.6856,175.88,175.84,9.03712437]
[1730102417063,5.6856,175.88,175.79,15.1932]
[1730102417064,5.6856,175.88,175.83,9.03712437]
[1730102417571,5.6856,175.88,175.84,9.03712437]
[1730102418684,5.6856,175.88,175.85,14.13521268]
[1730102418888,84.13521268,175.92,175.87,14.13521268]
[1730102419179,14.13521268,175.91,175.86,14.13521268]
[1730102419382,14.13521268,175.91,175.8,14.13521268]
[1730102419383,84.13521268,175.92,175.87,14.13521268]
[1730102420087,5.6847,175.91,175.87,14.13521268]
[1730102420664,5.6847,175.91,175.9,14.13521268]
[1730102420858,5.6847,175.91,175.89,14.13521268]
[1730102421073,5.6847,175.91,175.88,14.13521268]
[1730102421383,70.0,175.97,175.9,14.13521268]
[1730102421589,70.0,175.97,175.93,14.13521268]
[1730102421766,14.13521268,175.98,175.87,16.3356]
[1730102421767,5.6824,175.98,175.94,14.13521268]
[1730102422158,5.6824,175.98,175.95,14.13521268]
[1730102423083,5.6824,175.98,175.87,16.3356]
[1730102423084,5.6824,175.98,175.94,14.13521268]
[1730102424885,75.6822,175.99,175.96,14.13521268]
[1730102425467,75.6822,175.99,175.9,14.13521268]
[1730102425468,5.6822,175.99,175.97,14.13521268]
[1730102425694,5.6822,175.99,175.96,14.13521268]
[1730102425888,5.6822,175.99,175.95,14.13521268]
[1730102426091,70.0,175.98,175.95,14.13521268]
[1730102426280,70.0,175.96,175.92,14.13521268]
[1730102427773,5.6834,175.95,175.92,14.13521268]
[1730102427968,70.0,175.98,175.94,14.13521268]
[1730102428166,5.6827,175.97,175.95,14.13521268]
[1730102429167,5.6821,175.99,175.96,14.13521268]
[1730102429376,14.13521268,176.02,175.9,14.13521268]
[1730102429377,5.6811,176.02,175.98,14.13521268]
[1730102429586,70.0,176.0,175.97,14.13521268]
[1730102429894,70.0,176.0,175.95,14.13521268]
[1730102431090,5.6821,175.99,175.95,14.13521268]
[1730102432183,5.6821,175.99,175.96,14.13521268]
[1730102432995,5.6827,175.97,175.94,14.13521268]
[1730102433218,5.6827,175.97,175.93,14.13521268]
[1730102433375,19.81791268,175.97,175.92,14.13521268]
[1730102433687,5.6827,175.97,175.94,14.13521268]
[1730102433901,70.0,175.95,175.92,14.13521268]
[1730102434190,70.0,175.99,175.93,14.13521268]
[1730102434365,75.6822,175.99,175.95,14.13521268]
[1730102435907,70.0,175.97,175.93,14.13521268]
[1730102436080,70.0,175.97,175.92,14.13521268]
[1730102436603,70.0,175.97,175.94,14.13521268]
[1730102436911,70.0,175.97,175.92,14.13521268]
[1730102437204,5.6831,175.96,175.92,14.13521268]
[1730102437572,70.0,175.95,175.88,6.0235]
[1730102437774,70.0,175.93,175.88,14.13521268]
[1730102438088,70.0,175.91,175.86,14.13521268]
[1730102438686,70.0,175.89,175.85,14.13521268]
[1730102438884,84.13521268,175.89,175.84,14.13521268]
[1730102439080,5.6856,175.88,175.84,14.13521268]
[1730102439598,70.0,175.87,175.84,14.13521268]
[1730102439828,70.0,175.87,175.83,14.13521268]
[1730102440304,70.0,175.87,175.84,14.13521268]
[1730102440987,75.6863,175.87,175.84,14.13521268]
[1730102445114,75.6863,175.87,175.81,16.2096]
[1730102445404,14.13521268,175.84,175.79,14.13521268]
[1730102446188,19.82231268,175.84,175.79,14.13521268]
[1730102446413,84.13521268,175.83,175.77,29.74761268]
[1730102446885,84.13521268,175.83,175.78,14.13521268]
[1730102447495,84.13521268,175.8,175.74,14.13521268]
[1730102448079,70.0,175.8,175.76,14.13521268]
[1730102448407,5.6882,175.8,175.76,14.13521268]
[1730102449407,5.6875,175.83,175.79,14.13521268]
[1730102449898,19.82271268,175.83,175.78,14.13521268]
[1730102451309,70.0,175.82,175.78,14.13521268]
[1730102451810,84.13521268,175.82,175.77,14.13521268]
[1730102451990,70.0,175.82,175.77,14.13521268]
[1730102453817,5.6879,175.81,175.77,14.13521268]
[1730102454109,75.6877,175.82,175.78,14.13521268]
[1730102455791,5.6873,175.83,175.79,14.13521268]
[1730102455985,5.6869,175.85,175.82,14.13521268]
[1730102456199,75.6863,175.86,175.83,14.13521268]
[1730102456413,5.6863,175.86,175.83,14.13521268]
[1730102456708,5.6863,175.86,175.84,14.13521268]
[1730102456911,70.0,175.88,175.84,14.13521268]
[1730102457121,5.686,175.87,175.84,14.13521268]
[1730102458716,14.2119,175.91,175.86,14.13521268]
[1730102458717,70.0,175.91,175.86,14.13521268]
[1730102458916,70.0,175.91,175.81,16.6143]
[1730102458917,89.82011268,175.91,175.81,16.6143]
[1730102459103,84.13521268,175.89,175.83,14.13521268]
[1730102459303,84.13521268,175.87,175.81,14.13521268]
[1730102459499,14.13521268,175.86,175.81,14.13521268]
[1730102460301,5.6866,175.85,175.81,14.13521268]
[1730102460503,14.13521268,175.84,175.79,14.13521268]
[1730102460818,14.13521268,175.84,175.76,22.3814]
[1730102460819,84.13521268,175.83,175.78,14.13521268]
[1730102461302,14.13521268,175.81,175.76,14.13521268]
[1730102461512,14.13521268,175.82,175.76,14.13521268]
[1730102462521,70.0,175.79,175.75,14.13521268]
[1730102462704,14.13521268,175.78,175.73,14.13521268]
[1730102463244,14.13521268,175.78,175.72,14.13521268]
[1730102463523,70.0,175.77,175.73,14.13521268]
[1730102463911,84.13521268,175.77,175.72,14.13521268]
[1730102464121,70.0,175.77,175.72,14.13521268]
[1730102464413,19.82541268,175.74,175.69,14.13521268]
[1730102464616,84.13521268,175.75,175.7,14.13521268]
[1730102464924,75.6899,175.75,175.7,14.13521268]
[1730102465303,84.13521268,175.72,175.67,14.13521268]
[1730102466524,75.6909,175.72,175.68,14.13521268]
[1730102467026,70.0,175.72,175.69,14.13521268]
[1730102467226,0.1042751,175.7,175.64,6.5717]
[1730102467433,0.1042751,175.7,175.69,14.13521268]
[1730102469023,0.1042751,175.7,175.69,43.71412536]
[1730102469224,0.1042751,175.7,175.69,15.4437]
[1730102469436,0.1042751,175.7,175.69,43.71412536]
[1730102470324,0.10489824,175.71,175.69,67.49100936]
[1730102470526,0.10489824,175.71,175.7,52.04730936]
[1730102470734,0.11884744,175.72,175.7,52.04730936]
[1730102470926,0.11884744,175.72,175.71,14.13521268]
[1730102479533,0.11884744,175.72,175.71,37.91209668]
[1730102479737,0.11774643,175.73,175.72,14.13521268]
[1730102480345,0.1151214,175.77,175.73,44.127864]
[1730102480544,0.11723963,175.78,175.75,23.776884]
[1730102480854,75.6862,175.87,175.77,44.58582536]
[1730102481035,75.6862,175.87,175.78,28.27042536]
[1730102481237,75.6862,175.87,175.78,14.13521268]
[1730102481733,5.6868,175.85,175.78,14.13521268]
[1730102482049,70.0,175.86,175.78,14.13521268]
[1730102483236,75.6857,175.88,175.78,14.13521268]
[1730102483443,75.6857,175.88,175.78,52.04730936]
[1730102484538,75.6857,175.88,175.78,52.14730936]
[1730102484744,75.6857,175.88,175.85,14.13521268]
[1730102484937,30.0,175.86,175.85,14.13521268]
[1730102485857,75.6857,175.88,175.83,14.13521268]
[1730102486056,75.6857,175.88,175.84,14.13521268]
[1730102486655,84.13521268,175.86,175.81,14.13521268]
[1730102487055,30.0,175.85,175.82,14.13521268]
[1730102487263,0.10261771,175.83,175.82,14.13521268]
[1730102490355,0.10261771,175.83,175.75,0.1]
[1730102490356,0.10261771,175.83,175.81,14.13521268]
[1730102490733,0.10261771,175.83,175.82,14.13521268]
[1730102490932,0.10261771,175.83,175.81,14.13521268]
[1730102490933,5.78991771,175.83,175.81,14.13521268]
[1730102492757,5.78991771,175.83,175.8,14.13521268]
[1730102492966,0.10261771,175.83,175.82,14.13521268]
[1730102493271,30.10261771,175.83,175.82,14.13521268]
[1730102495560,0.10261771,175.83,175.82,14.13521268]
[1730102497059,0.10261771,175.83,175.82,37.91209668]
[1730102497278,0.10391691,175.84,175.82,58.16307668]
[1730102497478,0.1033261,175.85,175.83,37.91209668]
[1730102497673,0.1033261,175.85,175.84,37.91209668]
[1730102498374,0.1171203,175.86,175.85,43.876884]
[1730102498600,0.1171203,175.86,175.85,58.01209668]
[1730102499562,0.1171203,175.86,175.85,57.91209668]
[1730102499885,0.1171203,175.86,175.85,14.13521268]
[1730102507190,0.22815346,175.86,175.84,14.13521268]
[1730102507674,0.22815346,175.86,175.82,14.13521268]
[1730102507988,5.91455346,175.86,175.82,14.13521268]
[1730102508380,5.91455346,175.86,175.78,6.016]
[1730102508586,0.22815346,175.86,175.8,14.13521268]
[1730102508792,0.11103316,175.86,175.85,14.13521268]
[1730102510074,0.11103316,175.86,175.85,57.91209668]
[1730102510678,0.11103316,175.86,175.85,14.13521268]
[1730102511100,0.11103316,175.86,175.85,37.91209668]
[1730102512403,0.11103316,175.86,175.85,14.13521268]
[1730102519582,0.11103316,175.86,175.85,14.13521268]
[1730102521520,75.79753316,175.86,175.81,14.13521268]
[1730102521804,75.79753316,175.86,175.73,0.1]
[1730102521805,44.13521268,175.85,175.8,14.13521268]
[1730102522214,14.13521268,175.84,175.79,14.13521268]
[1730102522712,19.82221268,175.84,175.79,14.13521268]
[1730102523092,5.687,175.84,175.79,14.13521268]
[1730102523783,30.0,175.83,175.79,14.13521268]
[1730102524305,70.11103316,175.86,175.73,6.668]
[1730102524306,0.11103316,175.86,175.84,20.0]
[1730102524497,0.11721957,175.87,175.85,37.91209668]
[1730102524681,0.11721957,175.87,175.86,37.91209668]
[1730102524892,0.11721957,175.87,175.86,14.13521268]
[1730102526078,0.11721957,175.87,175.86,37.91209668]
[1730102526284,0.12338773,175.88,175.86,38.16307668]
[1730102526481,0.11807833,175.9,175.88,0.12549]
[1730102526682,0.11807833,175.9,175.89,57.91209668]
[1730102526892,0.11807833,175.9,175.89,14.13521268]
[1730102528790,5.6824,175.98,175.89,14.13521268]
[1730102529103,5.6824,175.98,175.93,14.13521268]
[1730102529311,70.0,175.97,175.92,14.13521268]
[1730102530027,84.13521268,175.97,175.91,14.13521268]
[1730102530506,5.6831,175.96,175.92,14.13521268]
[1730102531590,70.0,175.93,175.89,14.13521268]
[1730102532714,75.6842,175.93,175.88,14.13521268]
[1730102533210,75.6842,175.93,175.89,14.13521268]
[1730102534315,75.6842,175.93,175.9,14.13521268]
[1730102534621,70.0,175.96,175.92,14.13521268]
[1730102535408,75.6831,175.96,175.92,14.13521268]
[1730102537712,89.81831268,175.96,175.9,14.13521268]
[1730102538099,70.0,175.94,175.9,14.13521268]
[1730102538509,5.6831,175.96,175.93,14.13521268]
[1730102538693,70.0,175.98,175.93,14.13521268]
[1730102539010,70.0,175.98,175.94,14.13521268]
[1730102539211,75.6824,175.98,175.93,14.13521268]
[1730102539800,75.6824,175.98,175.94,14.13521268]
[1730102542405,89.81761268,175.98,175.93,14.13521268]
[1730102542596,75.6824,175.98,175.93,14.13521268]
[1730102544096,84.13521268,175.96,175.9,14.13521268]
[1730102544602,75.6822,175.99,175.95,14.13521268]
[1730102547694,75.6822,175.99,175.9,14.13521268]